[Event "Fagernes Chess GM-Swiss 2025"]
[Site "Fagernes"]
[Date "2025.04.17"]
[Round "6.17"]
[White "Miezis, Normunds"]
[Black "Skotheim, Andreas"]
[Result "1-0"]
[Annotator "RC"]
[ECO "A34"]
[WhiteElo "2409"]
[BlackElo "2229"]
[PlyCount "85"]
[EventDate "2025.04.12"]
[EventCountry "NOR"]
[SourceTitle "playchess.com"]
[Source "ChessBase"]
[SourceQuality "1"]
[TimeControl "40/6000+30:2400+30"]

1. c4 {[%emt 0:00:37]} c5 {[%emt 0:00:24]} 2. Nc3 {[%emt 0:00:17]} g6 {[%emt 0:00:19]} 3. h4 {[%emt 0:02:12]} h6 {[%emt 0:05:38]} 4. e3 {[%emt 0:04:45]} Bg7 {[%emt 0:02:42]} 5. d4 {[%emt 0:03:03]} Nf6 {[%emt 0:09:28]} 6. d5 {[%emt 0:05:02]} d6 {[%emt 0:02:05]} 7. Be2 {[%emt 0:03:12]} e6 {[%emt 0:19:07]} 8. dxe6 {[%emt 0:05:10]} Bxe6 {[%emt 0:00:52]} 9. Nh3 {[%emt 0:00:53]} g5 {[%emt 0:18:44]} 10. e4 {[%emt 0:02:11]} Nc6 {[%emt 0:03:21]} 11. hxg5 {[%emt 0:03:11]} hxg5 {[%emt 0:00:09]} 12. Bxg5 {[%emt 0:00:38]} Qd7 {[%emt 0:04:15]} 13. Rg1 {[%emt 0:05:11]} O-O-O {[%emt 0:08:10]} 14. Nf4 {[%emt 0:03:48]} Rdg8 {[%emt 0:01:01]} 15. Qd2 {[%emt 0:02:40]} Ne8 {[%emt 0:01:53]} 16. Nfd5 {[%emt 0:06:21]} f5 {[%emt 0:05:44]} 17. O-O-O {[%emt 0:07:43]} Bxd5 {[%emt 0:01:48]} 18. cxd5 {[%emt 0:10:46]} Nd4 {[%emt 0:00:38]} 19. Bd3 {[%emt 0:01:48]} b5 {[%emt 0:01:19]} 20. exf5 {[%emt 0:09:29]} b4 {[%emt 0:05:09]} 21. Ne2 {[%emt 0:01:26]} Nxf5 {[%emt 0:08:13]} 22. g4 {[%emt 0:05:33]} Ne7 {[%emt 0:00:29]} 23. Rde1 {[%emt 0:00:40]} Nc7 {[%emt 0:01:07]} 24. Nf4 {[%emt 0:01:18]} Be5 {[%emt 0:01:18]} 25. Bxe7 {[%emt 0:04:21]} Qxe7 {[%emt 0:00:04]} 26. Ng6 {[%emt 0:01:59]} Rxg6 {[%emt 0:01:11]} 27. Bxg6 {[%emt 0:00:10]} Qf6 {[%emt 0:00:26]} 28. Bf5+ {[%emt 0:00:20]} Kb8 {[%emt 0:00:12]} 29. Rh1 {[%emt 0:02:13]} Bd4 {[%emt 0:05:06]} 30. Rxh8+ {[%emt 0:03:48]} Qxh8 {[%emt 0:00:02]} 31. Be6 {[%emt 0:03:51]} a5 {[%emt 0:01:50]} 32. f4 {[%emt 0:00:22]} c4 {[%emt 0:01:11]} 33. Qe2 {[%emt 0:00:42]} Nb5 {[%emt 0:01:04]} 34. Bd7 {[%emt 0:02:31]} Nc7 {[%emt 0:00:04]} 35. Bc6 {[%emt 0:01:02]} Qh4 {[%emt 0:01:09]} 36. Rf1 {[%emt 0:00:29]} c3 {[%emt 0:01:09]} 37. bxc3 {[%emt 0:00:30]} bxc3 {[%emt 0:00:47]} 38. Kc2 {[%emt 0:01:05]} Ka7 {[%emt 0:00:18]} 39. Rb1 {[%emt 0:00:50]} Bb6 {[%emt 0:00:12]} 40. a3 {[%emt 0:02:07]} Qg3 {[%emt 0:01:02]} 41. f5 {[%emt 0:40:47]} Qf4 {[%emt 0:40:40]} 42. Rb3 {[%emt 0:05:47]} Na6 {[%emt 0:00:00]} 43. Rxb6 {[%emt 0:00:00]} 1-0

[Event "Fagernes Chess GM-Swiss 2025"]
[Site "Fagernes"]
[Date "2025.04.17"]
[Round "6.18"]
[White "Lund, Gunnar"]
[Black "Southcott-Moyers, Indy"]
[Result "1/2-1/2"]
[Annotator "RC"]
[ECO "D02"]
[WhiteElo "2341"]
[BlackElo "2227"]
[PlyCount "55"]
[EventDate "2025.04.12"]
[EventCountry "NOR"]
[SourceTitle "playchess.com"]
[Source "ChessBase"]
[SourceQuality "1"]
[TimeControl "40/6000+30:2400+30"]

1. d4 {[%emt 0:04:05]} d5 {[%emt 0:00:07]} 2. Bf4 {[%emt 0:00:13]} Nf6 {[%emt 0:00:19]} 3. e3 {[%emt 0:00:23]} e6 {[%emt 0:00:07]} 4. Nf3 {[%emt 0:00:11]} c5 {[%emt 0:00:07]} 5. c3 {[%emt 0:00:09]} Nc6 {[%emt 0:00:04]} 6. Nbd2 {[%emt 0:00:34]} cxd4 {[%emt 0:00:15]} 7. exd4 {[%emt 0:00:17]} Nh5 {[%emt 0:00:06]} 8. Be3 {[%emt 0:00:20]} Bd6 {[%emt 0:00:06]} 9. Bd3 {[%emt 0:00:10]} Nf4 {[%emt 0:00:36]} 10. Bxf4 {[%emt 0:00:14]} Bxf4 {[%emt 0:00:03]} 11. O-O {[%emt 0:00:25]} g6 {[%emt 0:07:44]} 12. Re1 {[%emt 0:03:43]} O-O {[%emt 0:00:28]} 13. g3 {[%emt 0:01:07]} Bh6 {[%emt 0:00:26]} 14. a4 {[%emt 0:06:34]} Bd7 {[%emt 0:09:13]} 15. Nb3 {[%emt 0:12:20]} b6 {[%emt 0:01:16]} 16. Qe2 {[%emt 0:01:26]} Qc7 {[%emt 0:09:16]} 17. Bb5 {[%emt 0:00:54]} a5 {[%emt 0:14:34]} 18. Kg2 {[%emt 0:01:34]} Ne7 {[%emt 0:11:01]} 19. Bd3 {[%emt 0:01:33]} Rae8 {[%emt 0:05:58]} 20. h4 {[%emt 0:05:39]} Nc6 {[%emt 0:03:04]} 21. Ne5 {[%emt 0:02:12]} Nxe5 {[%emt 0:06:00]} 22. dxe5 {[%emt 0:01:38]} f6 {[%emt 0:01:00]} 23. h5 {[%emt 0:33:12]} Qxe5 {[%emt 0:14:32]} 24. Qc2 {[%emt 0:04:58]} Qg5 {[%emt 0:01:22]} 25. f4 {[%emt 0:02:31]} Qg4 {[%emt 0:00:15]} 26. Be2 {[%emt 0:06:56]} Qf5 {[%emt 0:00:06]} 27. Bd3 {[%emt 0:00:22]} Qg4 {[%emt 0:00:04]} 28. Be2 {[%emt 0:00:13]} 1/2-1/2

[Event "Fagernes Chess GM-Swiss 2025"]
[Site "Fagernes"]
[Date "2025.04.17"]
[Round "6.19"]
[White "Vijayakumar, Rishi"]
[Black "Khoo-Thwe, Louis"]
[Result "1-0"]
[Annotator "RC"]
[ECO "D27"]
[WhiteElo "2317"]
[BlackElo "2118"]
[PlyCount "61"]
[EventDate "2025.04.12"]
[EventCountry "NOR"]
[SourceTitle "playchess.com"]
[Source "ChessBase"]
[SourceQuality "1"]
[TimeControl "40/6000+30:2400+30"]

1. d4 {[%emt 0:00:08]} d5 {[%emt 0:00:09]} 2. c4 {[%emt 0:00:07]} dxc4 {[%emt 0:00:08]} 3. Nf3 {[%emt 0:00:09]} Nf6 {[%emt 0:00:08]} 4. e3 {[%emt 0:00:05]} e6 {[%emt 0:00:06]} 5. Bxc4 {[%emt 0:00:04]} a6 {[%emt 0:00:07]} 6. O-O {[%emt 0:00:07]} c5 {[%emt 0:00:07]} 7. e4 {[%emt 0:00:24]} b5 {[%emt 0:02:49]} 8. Be2 {[%emt 0:01:04]} Bb7 {[%emt 0:03:58]} 9. a4 {[%emt 0:02:08]} cxd4 {[%emt 0:11:05]} 10. e5 {[%emt 0:05:07]} Ne4 {[%emt 0:05:44]} 11. axb5 {[%emt 0:00:38]} Bc5 {[%emt 0:03:13]} 12. Qc2 {[%emt 0:23:39]} Nd7 {[%emt 0:04:19]} 13. bxa6 {[%emt 0:02:33]} f5 {[%emt 0:03:09]} 14. b4 {[%emt 0:10:27]} Bb6 {[%emt 0:05:21]} 15. Bb2 {[%emt 0:08:23]} Bd5 {[%emt 0:02:25]} 16. Bc4 {[%emt 0:10:12]} Rc8 {[%emt 0:04:11]} 17. Na3 {[%emt 0:00:05]} Ng5 {[%emt 0:05:44]} 18. Qe2 {[%emt 0:18:21]} Nxf3+ {[%emt 0:08:19]} 19. gxf3 {[%emt 0:00:01]} Rxc4 {[%emt 0:05:31]} 20. Nxc4 {[%emt 0:00:15]} Qg5+ {[%emt 0:02:38]} 21. Kh1 {[%emt 0:00:07]} Qf4 {[%emt 0:00:49]} 22. Ra3 {[%emt 0:00:39]} d3 {[%emt 0:03:02]} 23. Nd6+ {[%emt 0:00:52]} Ke7 {[%emt 0:10:31]} 24. Rxd3 {[%emt 0:00:05]} Ba8 {[%emt 0:04:22]} 25. Nb7 {[%emt 0:01:20]} Bc7 {[%emt 0:02:12]} 26. Rxd7+ {[%emt 0:03:31]} Kxd7 {[%emt 0:00:14]} 27. Qb5+ {[%emt 0:00:30]} Ke7 {[%emt 0:04:25]} 28. Qc5+ {[%emt 0:00:09]} Ke8 {[%emt 0:00:21]} 29. Qc6+ {[%emt 0:00:07]} Kf8 {[%emt 0:00:08]} 30. Rd1 {[%emt 0:00:26]} h5 {[%emt 0:02:25]} 31. Rd4 {[%emt 0:00:13]} 1-0

[Event "Fagernes Chess GM-Swiss 2025"]
[Site "Fagernes"]
[Date "2025.04.17"]
[Round "6.20"]
[White "Hedman, Erik"]
[Black "Brattgjerd, Isak Vinh"]
[Result "1/2-1/2"]
[Annotator "RC"]
[ECO "B11"]
[WhiteElo "2276"]
[BlackElo "2202"]
[PlyCount "47"]
[EventDate "2025.04.12"]
[EventCountry "NOR"]
[SourceTitle "playchess.com"]
[Source "ChessBase"]
[SourceQuality "1"]
[TimeControl "40/6000+30:2400+30"]

1. e4 {[%emt 0:00:02]} c6 {[%emt 0:00:36]} 2. Nf3 {[%emt 0:00:44]} d5 {[%emt 0:00:07]} 3. Nc3 {[%emt 0:00:05]} dxe4 {[%emt 0:00:03]} 4. Nxe4 {[%emt 0:00:07]} Nf6 {[%emt 0:00:03]} 5. Qe2 {[%emt 0:00:32]} Nxe4 {[%emt 0:00:05]} 6. Qxe4 {[%emt 0:00:10]} Nd7 {[%emt 0:00:02]} 7. d4 {[%emt 0:01:26]} Nf6 {[%emt 0:00:06]} 8. Qd3 {[%emt 0:00:08]} Qa5+ {[%emt 0:03:02]} 9. Bd2 {[%emt 0:01:40]} Qf5 {[%emt 0:00:18]} 10. Qb3 {[%emt 0:09:07]} Qe6+ {[%emt 0:00:50]} 11. Ne5 {[%emt 0:12:54]} Qxb3 {[%emt 0:05:58]} 12. axb3 {[%emt 0:00:05]} Bf5 {[%emt 0:05:55]} 13. c3 {[%emt 0:04:06]} Nd7 {[%emt 0:07:00]} 14. b4 {[%emt 0:04:09]} g6 {[%emt 0:06:39]} 15. b5 {[%emt 0:23:35]} Nxe5 {[%emt 0:00:57]} 16. dxe5 {[%emt 0:00:04]} cxb5 {[%emt 0:05:20]} 17. Bxb5+ {[%emt 0:01:37]} Bd7 {[%emt 0:00:06]} 18. Bc4 {[%emt 0:02:07]} e6 {[%emt 0:18:17]} 19. h4 {[%emt 0:02:55]} h5 {[%emt 0:07:34]} 20. Ke2 {[%emt 0:05:38]} Bc6 {[%emt 0:01:44]} 21. Rhd1 {[%emt 0:08:35]} Bg7 {[%emt 0:10:02]} 22. Bf4 {[%emt 0:02:16]} O-O {[%emt 0:01:06]} 23. f3 {[%emt 0:00:41]} Rfc8 {[%emt 0:04:23]} 24. Bb3 {[%emt 0:04:34]} 1/2-1/2

[Event "Fagernes Chess GM-Swiss 2025"]
[Site "Fagernes"]
[Date "2025.04.17"]
[Round "6.21"]
[White "Skaar, Ben Samuel Groth"]
[Black "Gandrud, Vegar Koi"]
[Result "1-0"]
[Annotator "RC"]
[ECO "B90"]
[WhiteElo "2167"]
[BlackElo "2273"]
[PlyCount "53"]
[EventDate "2025.04.12"]
[EventCountry "NOR"]
[SourceTitle "playchess.com"]
[Source "ChessBase"]
[SourceQuality "1"]
[TimeControl "40/6000+30:2400+30"]

1. e4 {[%emt 0:06:13]} c5 {[%emt 0:00:03]} 2. Nf3 {[%emt 0:00:05]} d6 {[%emt 0:00:03]} 3. d4 {[%emt 0:00:06]} cxd4 {[%emt 0:00:04]} 4. Nxd4 {[%emt 0:00:05]} Nf6 {[%emt 0:00:04]} 5. Nc3 {[%emt 0:00:05]} a6 {[%emt 0:00:07]} 6. Rg1 {[%emt 0:00:04]} e5 {[%emt 0:02:35]} 7. Nb3 {[%emt 0:00:36]} Be6 {[%emt 0:03:21]} 8. g4 {[%emt 0:00:07]} Be7 {[%emt 0:06:33]} 9. g5 {[%emt 0:01:02]} Nfd7 {[%emt 0:00:06]} 10. Be3 {[%emt 0:00:11]} Nb6 {[%emt 0:00:42]} 11. Qd2 {[%emt 0:06:19]} N8d7 {[%emt 0:02:59]} 12. O-O-O {[%emt 0:04:26]} Qc7 {[%emt 0:00:35]} 13. f4 {[%emt 0:02:32]} exf4 {[%emt 0:04:03]} 14. Bxf4 {[%emt 0:01:33]} Ne5 {[%emt 0:00:09]} 15. Nd4 {[%emt 0:11:18]} Nbc4 {[%emt 0:08:01]} 16. Bxc4 {[%emt 0:01:04]} Nxc4 {[%emt 0:01:34]} 17. Qd3 {[%emt 0:03:34]} O-O-O {[%emt 0:36:42]} 18. Nd5 {[%emt 0:05:19]} Bxd5 {[%emt 0:00:39]} 19. exd5 {[%emt 0:00:06]} Ne5 {[%emt 0:00:53]} 20. Qb3 {[%emt 0:24:09]} g6 {[%emt 0:01:10]} 21. Rg3 {[%emt 0:02:08]} Kb8 {[%emt 0:00:27]} 22. Rc3 {[%emt 0:01:27]} Qd7 {[%emt 0:00:06]} 23. Nc6+ {[%emt 0:03:32]} Nxc6 {[%emt 0:00:39]} 24. dxc6 {[%emt 0:00:06]} Qc7 {[%emt 0:00:06]} 25. cxb7 {[%emt 0:02:00]} Qxb7 {[%emt 0:01:51]} 26. Qa4 {[%emt 0:00:31]} Ka8 {[%emt 0:06:58]} 27. Rb3 {[%emt 0:00:10]} 1-0

[Event "Fagernes Chess GM-Swiss 2025"]
[Site "Fagernes"]
[Date "2025.04.17"]
[Round "6.22"]
[White "Ostensen, Nicolai Maxime"]
[Black "Torfoss, Sivert Schanche"]
[Result "1-0"]
[Annotator "RC"]
[ECO "A28"]
[WhiteElo "2260"]
[BlackElo "2141"]
[PlyCount "163"]
[EventDate "2025.04.12"]
[EventCountry "NOR"]
[SourceTitle "playchess.com"]
[Source "ChessBase"]
[SourceQuality "1"]
[TimeControl "40/6000+30:2400+30"]

1. c4 {[%emt 0:00:04]} Nf6 {[%emt 0:00:46]} 2. Nc3 {[%emt 0:00:08]} e5 {[%emt 0:00:12]} 3. Nf3 {[%emt 0:00:09]} Nc6 {[%emt 0:00:18]} 4. a3 {[%emt 0:00:11]} d5 {[%emt 0:02:19]} 5. cxd5 {[%emt 0:00:16]} Nxd5 {[%emt 0:00:05]} 6. Qc2 {[%emt 0:00:08]} Be7 {[%emt 0:03:20]} 7. e3 {[%emt 0:00:07]} a6 {[%emt 0:08:22]} 8. Be2 {[%emt 0:00:41]} O-O {[%emt 0:01:05]} 9. O-O {[%emt 0:00:13]} Be6 {[%emt 0:01:30]} 10. b4 {[%emt 0:02:40]} Nb6 {[%emt 0:02:23]} 11. d3 {[%emt 0:05:44]} Bf5 {[%emt 0:06:23]} 12. Bb2 {[%emt 0:05:48]} Qd7 {[%emt 0:13:55]} 13. Ne4 {[%emt 0:01:37]} Bxe4 {[%emt 0:08:21]} 14. dxe4 {[%emt 0:00:08]} Qe6 {[%emt 0:00:04]} 15. Nd2 {[%emt 0:01:01]} Rfd8 {[%emt 0:03:27]} 16. Nc4 {[%emt 0:01:40]} Nd7 {[%emt 0:01:48]} 17. Rac1 {[%emt 0:01:40]} Rac8 {[%emt 0:11:07]} 18. h3 {[%emt 0:02:16]} Nf6 {[%emt 0:04:14]} 19. Bc3 {[%emt 0:10:48]} b5 {[%emt 0:03:28]} 20. Nd2 {[%emt 0:03:48]} Nb8 {[%emt 0:01:00]} 21. Nf3 {[%emt 0:09:02]} Bd6 {[%emt 0:05:53]} 22. Rfd1 {[%emt 0:02:36]} c5 {[%emt 0:12:05]} 23. Qb1 {[%emt 0:00:42]} c4 {[%emt 0:01:32]} 24. Nh4 {[%emt 0:01:36]} Nc6 {[%emt 0:03:17]} 25. g4 {[%emt 0:01:26]} h6 {[%emt 0:03:45]} 26. Kh2 {[%emt 0:01:10]} a5 {[%emt 0:02:45]} 27. Rg1 {[%emt 0:01:11]} axb4 {[%emt 0:01:12]} 28. axb4 {[%emt 0:00:13]} Nd4 {[%emt 0:05:30]} 29. Bd1 {[%emt 0:01:53]} Nb3 {[%emt 0:02:15]} 30. Bxb3 {[%emt 0:01:22]} cxb3 {[%emt 0:00:04]} 31. f3 {[%emt 0:00:28]} Ra8 {[%emt 0:01:04]} 32. Rg2 {[%emt 0:00:48]} Ra2 {[%emt 0:00:46]} 33. Nf5 {[%emt 0:00:48]} Bf8 {[%emt 0:00:36]} 34. Rxa2 {[%emt 0:02:16]} bxa2 {[%emt 0:00:06]} 35. Qb2 {[%emt 0:00:34]} Qc4 {[%emt 0:01:18]} 36. Kg3 {[%emt 0:01:52]} Ra8 {[%emt 0:01:03]} 37. Ra1 {[%emt 0:02:50]} Nd7 {[%emt 0:00:47]} 38. Kf2 {[%emt 0:01:09]} Ra4 {[%emt 0:00:50]} 39. Ng3 {[%emt 0:00:20]} Ra8 {[%emt 0:00:31]} 40. Ne2 {[%emt 0:00:07]} Nb6 {[%emt 0:00:30]} 41. Bxe5 {[%emt 0:41:36]} Ra4 {[%emt 0:40:32]} 42. Bd4 {[%emt 0:01:22]} Rxb4 {[%emt 0:00:00]} 43. Qxa2 {[%emt 0:00:00]} Qc7 {[%emt 0:00:00]} 44. f4 {[%emt 0:00:00]} Ra4 {[%emt 0:00:00]} 45. Qb1 {[%emt 0:00:00]} Rxa1 {[%emt 0:00:00]} 46. Qxa1 {[%emt 0:00:00]} Nc4 {[%emt 0:00:00]} 47. Qc3 {[%emt 0:00:00]} Qb7 {[%emt 0:00:00]} 48. Ng3 {[%emt 0:00:00]} Qa6 {[%emt 0:00:00]} 49. Qb3 {[%emt 0:00:00]} Qa5 {[%emt 0:00:00]} 50. Ne2 {[%emt 0:00:00]} Nd6 {[%emt 0:00:36]} 51. Nc3 {[%emt 0:00:00]} b4 {[%emt 0:02:33]} 52. e5 {[%emt 0:00:00]} bxc3 {[%emt 0:02:01]} 53. exd6 {[%emt 0:00:00]} Qd8 {[%emt 0:00:36]} 54. Qxc3 {[%emt 0:00:00]} Qxd6 {[%emt 0:00:07]} 55. Qc4 {[%emt 0:00:00]} Qd8 {[%emt 0:00:41]} 56. Kg3 {[%emt 0:00:00]} Qa8 {[%emt 0:00:41]} 57. Qd3 {[%emt 0:00:00]} Qh1 {[%emt 0:00:33]} 58. e4 {[%emt 0:00:00]} Bb4 {[%emt 0:00:32]} 59. Bf2 {[%emt 0:00:00]} h5 {[%emt 0:00:33]} 60. gxh5 {[%emt 0:00:00]} Be1 {[%emt 0:00:32]} 61. Bxe1 {[%emt 0:00:00]} Qg1+ {[%emt 0:00:20]} 62. Kf3 {[%emt 0:00:00]} Qxe1 {[%emt 0:00:09]} 63. Kg2 {[%emt 0:00:00]} Qh4 {[%emt 0:00:16]} 64. Qf3 {[%emt 0:00:00]} Qe1 {[%emt 0:00:13]} 65. e5 {[%emt 0:01:22]} Qd2+ {[%emt 0:00:12]} 66. Kg3 {[%emt 0:00:54]} Qe1+ {[%emt 0:00:15]} 67. Qf2 {[%emt 0:00:47]} Qe4 {[%emt 0:00:14]} 68. Qd2 {[%emt 0:01:01]} Kh7 {[%emt 0:00:45]} 69. Qf2 {[%emt 0:03:27]} Kh6 {[%emt 0:00:36]} 70. Kh4 {[%emt 0:02:15]} Qf5 {[%emt 0:00:37]} 71. Qf3 {[%emt 0:01:09]} Kh7 {[%emt 0:00:57]} 72. Qg4 {[%emt 0:01:28]} Qe4 {[%emt 0:00:20]} 73. Kg5 {[%emt 0:01:17]} Qe3 {[%emt 0:00:56]} 74. h6 {[%emt 0:01:41]} g6 {[%emt 0:01:11]} 75. Kf6 {[%emt 0:01:06]} Qb6+ {[%emt 0:00:32]} 76. Kxf7 {[%emt 0:00:24]} Qc7+ {[%emt 0:00:27]} 77. Ke8 {[%emt 0:01:26]} Qb8+ {[%emt 0:00:23]} 78. Ke7 {[%emt 0:00:10]} Qb4+ {[%emt 0:00:28]} 79. Kf7 {[%emt 0:00:31]} Qb7+ {[%emt 0:00:36]} 80. Kf6 {[%emt 0:00:11]} Qb6+ {[%emt 0:00:22]} 81. Qe6 {[%emt 0:00:17]} g5 {[%emt 0:00:45]} 82. Qxb6 {[%emt 0:00:13]} 1-0

[Event "Fagernes Chess GM-Swiss 2025"]
[Site "Fagernes"]
[Date "2025.04.17"]
[Round "6.23"]
[White "Hebbar, Eshaan"]
[Black "Pang, Ethan"]
[Result "1/2-1/2"]
[Annotator "RC"]
[ECO "D28"]
[WhiteElo "2175"]
[BlackElo "2257"]
[PlyCount "80"]
[EventDate "2025.04.12"]
[EventCountry "NOR"]
[SourceTitle "playchess.com"]
[Source "ChessBase"]
[SourceQuality "1"]
[TimeControl "40/6000+30:2400+30"]

1. d4 {[%emt 0:00:03]} d5 {[%emt 0:11:53]} 2. c4 {[%emt 0:00:08]} dxc4 {[%emt 0:00:30]} 3. e3 {[%emt 0:00:07]} Nf6 {[%emt 0:00:34]} 4. Bxc4 {[%emt 0:00:12]} e6 {[%emt 0:00:12]} 5. Nf3 {[%emt 0:00:06]} c5 {[%emt 0:00:35]} 6. O-O {[%emt 0:00:09]} Nc6 {[%emt 0:01:05]} 7. Qe2 {[%emt 0:01:36]} a6 {[%emt 0:01:03]} 8. dxc5 {[%emt 0:03:45]} Bxc5 {[%emt 0:02:15]} 9. Rd1 {[%emt 0:00:09]} Qc7 {[%emt 0:01:53]} 10. a4 {[%emt 0:00:14]} O-O {[%emt 0:03:51]} 11. h3 {[%emt 0:01:47]} Bd7 {[%emt 0:08:52]} 12. Nc3 {[%emt 0:06:51]} Rfd8 {[%emt 0:06:06]} 13. e4 {[%emt 0:02:22]} Ne5 {[%emt 0:08:14]} 14. Ba2 {[%emt 0:11:35]} Bc6 {[%emt 0:20:17]} 15. Bg5 {[%emt 0:09:28]} Nxf3+ {[%emt 0:03:18]} 16. Qxf3 {[%emt 0:00:07]} Qe5 {[%emt 0:01:32]} 17. Bf4 {[%emt 0:02:01]} Qh5 {[%emt 0:00:18]} 18. Qxh5 {[%emt 0:02:37]} Nxh5 {[%emt 0:01:23]} 19. Bc7 {[%emt 0:03:56]} Rxd1+ {[%emt 0:09:38]} 20. Rxd1 {[%emt 0:00:08]} Rc8 {[%emt 0:02:58]} 21. Bd6 {[%emt 0:02:17]} Bb6 {[%emt 0:03:03]} 22. Kf1 {[%emt 0:01:05]} Rd8 {[%emt 0:03:57]} 23. f3 {[%emt 0:00:32]} a5 {[%emt 0:03:04]} 24. Bc4 {[%emt 0:01:40]} Nf6 {[%emt 0:03:53]} 25. Ke2 {[%emt 0:02:06]} Ne8 {[%emt 0:01:19]} 26. Be7 {[%emt 0:00:42]} Rxd1 {[%emt 0:02:05]} 27. Kxd1 {[%emt 0:00:06]} Bc7 {[%emt 0:02:02]} 28. Nb5 {[%emt 0:01:50]} Be5 {[%emt 0:01:34]} 29. b3 {[%emt 0:00:41]} Bf6 {[%emt 0:02:25]} 30. Bc5 {[%emt 0:03:06]} Bd8 {[%emt 0:00:33]} 31. Ke2 {[%emt 0:02:12]} b6 {[%emt 0:00:51]} 32. Bd4 {[%emt 0:01:58]} Nf6 {[%emt 0:00:46]} 33. Na3 {[%emt 0:03:20]} Nd7 {[%emt 0:01:35]} 34. Ba6 {[%emt 0:01:24]} Be7 {[%emt 0:01:27]} 35. Nc4 {[%emt 0:00:49]} Nc5 {[%emt 0:01:35]} 36. Ne5 {[%emt 0:01:29]} Be8 {[%emt 0:00:53]} 37. Bc4 {[%emt 0:01:00]} Kf8 {[%emt 0:00:55]} 38. Kd2 {[%emt 0:01:47]} f6 {[%emt 0:00:34]} 39. Nd3 {[%emt 0:00:43]} e5 {[%emt 0:00:12]} 40. Nxc5 {[%emt 0:00:50]} Bxc5 {[%emt 0:00:28]} 1/2-1/2

[Event "Fagernes Chess GM-Swiss 2025"]
[Site "Fagernes"]
[Date "2025.04.17"]
[Round "6.24"]
[White "Oksendal, Martin"]
[Black "Simonsen, David Mindestrommen"]
[Result "1/2-1/2"]
[Annotator "RC"]
[ECO "B90"]
[WhiteElo "2250"]
[BlackElo "2034"]
[PlyCount "138"]
[EventDate "2025.04.12"]
[EventCountry "NOR"]
[SourceTitle "playchess.com"]
[Source "ChessBase"]
[SourceQuality "1"]
[TimeControl "40/6000+30:2400+30"]

1. e4 {[%emt 0:00:24]} c5 {[%emt 0:00:28]} 2. Nf3 {[%emt 0:00:48]} d6 {[%emt 0:00:09]} 3. d4 {[%emt 0:00:18]} cxd4 {[%emt 0:00:07]} 4. Nxd4 {[%emt 0:00:04]} Nf6 {[%emt 0:00:07]} 5. Nc3 {[%emt 0:00:03]} a6 {[%emt 0:00:06]} 6. Rg1 {[%emt 0:00:07]} e5 {[%emt 0:02:09]} 7. Nb3 {[%emt 0:00:19]} h5 {[%emt 0:02:03]} 8. h3 {[%emt 0:00:18]} Be6 {[%emt 0:00:13]} 9. Qf3 {[%emt 0:00:16]} Nbd7 {[%emt 0:01:18]} 10. g4 {[%emt 0:06:38]} hxg4 {[%emt 0:01:54]} 11. hxg4 {[%emt 0:00:06]} g6 {[%emt 0:02:32]} 12. g5 {[%emt 0:10:26]} Nh5 {[%emt 0:02:22]} 13. Be3 {[%emt 0:04:30]} Rc8 {[%emt 0:04:15]} 14. O-O-O {[%emt 0:14:10]} Qc7 {[%emt 0:02:40]} 15. Bh3 {[%emt 0:19:09]} b5 {[%emt 0:01:41]} 16. Rd2 {[%emt 0:11:53]} b4 {[%emt 0:02:52]} 17. Nd5 {[%emt 0:00:43]} Bxd5 {[%emt 0:00:31]} 18. exd5 {[%emt 0:00:33]} a5 {[%emt 0:03:09]} 19. Kb1 {[%emt 0:08:40]} Ra8 {[%emt 0:14:19]} 20. Qe2 {[%emt 0:08:17]} Be7 {[%emt 0:14:09]} 21. Qb5 {[%emt 0:05:34]} Ng7 {[%emt 0:00:46]} 22. Bb6 {[%emt 0:02:34]} Rb8 {[%emt 0:01:30]} 23. Bxc7 {[%emt 0:02:50]} Rxb5 {[%emt 0:00:08]} 24. Bf1 {[%emt 0:00:47]} Rb7 {[%emt 0:01:07]} 25. Bxa5 {[%emt 0:00:07]} O-O {[%emt 0:01:52]} 26. c3 {[%emt 0:00:59]} bxc3 {[%emt 0:00:22]} 27. Bxc3 {[%emt 0:00:04]} Bd8 {[%emt 0:01:23]} 28. Bd3 {[%emt 0:02:43]} Nb6 {[%emt 0:00:43]} 29. Na5 {[%emt 0:01:49]} Rc7 {[%emt 0:00:25]} 30. Bb5 {[%emt 0:00:48]} Rc5 {[%emt 0:00:23]} 31. Bc6 {[%emt 0:01:47]} Rxa5 {[%emt 0:00:58]} 32. Bxa5 {[%emt 0:00:14]} Nc4 {[%emt 0:00:05]} 33. Bxd8 {[%emt 0:02:10]} Nxd2+ {[%emt 0:00:11]} 34. Kc1 {[%emt 0:00:18]} Nf3 {[%emt 0:00:16]} 35. Rg3 {[%emt 0:00:08]} Nd4 {[%emt 0:00:03]} 36. Bb6 {[%emt 0:01:55]} Ne2+ {[%emt 0:00:43]} 37. Kc2 {[%emt 0:00:54]} Nxg3 {[%emt 0:00:08]} 38. fxg3 {[%emt 0:00:02]} Nf5 {[%emt 0:00:44]} 39. a4 {[%emt 0:04:33]} Ne7 {[%emt 0:01:09]} 40. b4 {[%emt 0:01:52]} Rc8 {[%emt 0:00:57]} 41. Kd2 {[%emt 0:13:17]} Nxc6 {[%emt 0:00:29]} 42. dxc6 {[%emt 0:00:02]} Rxc6 {[%emt 0:00:17]} 43. a5 {[%emt 0:00:02]} Kf8 {[%emt 0:09:18]} 44. b5 {[%emt 0:01:32]} Rc4 {[%emt 0:06:08]} 45. a6 {[%emt 0:06:55]} Ke7 {[%emt 0:11:50]} 46. a7 {[%emt 0:03:25]} Ra4 {[%emt 0:01:30]} 47. Ba5 {[%emt 0:00:13]} Rxa5 {[%emt 0:01:32]} 48. b6 {[%emt 0:00:22]} Ra3 {[%emt 0:00:46]} 49. b7 {[%emt 0:00:27]} Rxa7 {[%emt 0:00:04]} 50. b8=Q {[%emt 0:00:05]} Ra4 {[%emt 0:08:54]} 51. Qb7+ {[%emt 0:00:47]} Kf8 {[%emt 0:00:13]} 52. Qb8+ {[%emt 0:00:34]} Kg7 {[%emt 0:00:07]} 53. Qc8 {[%emt 0:02:12]} Rd4+ {[%emt 0:01:00]} 54. Ke3 {[%emt 0:00:23]} Rd5 {[%emt 0:00:37]} 55. Qd8 {[%emt 0:04:59]} Rd4 {[%emt 0:00:17]} 56. Qf6+ {[%emt 0:01:32]} Kg8 {[%emt 0:00:08]} 57. g4 {[%emt 0:01:01]} Rd5 {[%emt 0:00:47]} 58. Qe7 {[%emt 0:00:55]} Rd4 {[%emt 0:00:23]} 59. Kf3 {[%emt 0:00:14]} Rd3+ {[%emt 0:00:36]} 60. Ke2 {[%emt 0:00:18]} Rd4 {[%emt 0:00:05]} 61. Ke3 {[%emt 0:00:47]} Kg7 {[%emt 0:00:23]} 62. Kf3 {[%emt 0:00:08]} Rd3+ {[%emt 0:00:45]} 63. Kg2 {[%emt 0:00:05]} Rd4 {[%emt 0:00:06]} 64. Kg3 {[%emt 0:00:15]} Rd3+ {[%emt 0:00:14]} 65. Kh4 {[%emt 0:00:09]} Kg8 {[%emt 0:00:26]} 66. Qd8+ {[%emt 0:00:53]} Kg7 {[%emt 0:00:11]} 67. Qf6+ {[%emt 0:02:29]} Kg8 {[%emt 0:00:22]} 68. Qd8+ {[%emt 0:00:03]} Kg7 {[%emt 0:00:10]} 69. Qh8+ {[%emt 0:00:12]} Kxh8 {[%emt 0:00:10]} 1/2-1/2